[Event "*** Titled Tuesday 3|2 Blitz"]
[Site "Chess.com"]
[Date "2016.01.05"]
[Round "1"]
[White "chess960now"]
[Black "LittlePeasant"]
[Result "0-1"]
[WhiteElo "1971"]
[BlackElo "2338"]
[TimeControl "180+2"]
[EndTime "11:07:49 PST"]
[Termination "LittlePeasant won by resignation"]

1. d4 {[%clk 0:02:42.6]} 1... Nf6 {[%clk 0:02:58.2]} 2. c4 {[%clk 0:02:43.1]}
2... c5 {[%clk 0:02:59.3]} 3. d5 {[%clk 0:02:43.7]} 3... b5 {[%clk 0:03:00.6]}
4. cxb5 {[%clk 0:02:44.1]} 4... a6 {[%clk 0:03:01.8]} 5. bxa6 {[%clk 0:02:43.9]}
5... Bxa6 {[%clk 0:03:03.7]} 6. Nc3 {[%clk 0:02:43.6]} 6... g6 {[%clk 0:03:05]}
7. g3 {[%clk 0:02:44.5]} 7... d6 {[%clk 0:03:05.8]} 8. Bg2 {[%clk 0:02:45.5]}
8... Bg7 {[%clk 0:03:07.4]} 9. Nf3 {[%clk 0:02:46.2]} 9... Nbd7 {[%clk 0:03:09]}
10. O-O {[%clk 0:02:46.8]} 10... Nb6 {[%clk 0:03:09.4]} 11. Rb1 {[%clk
0:02:47.1]} 11... Bc4 {[%clk 0:03:10.4]} 12. b3 {[%clk 0:02:13.8]} 12... Bxd5
{[%clk 0:03:06.5]} 13. Nxd5 {[%clk 0:02:13.8]} 13... Nbxd5 {[%clk 0:03:01]} 14.
Qd2 {[%clk 0:01:58.5]} 14... Qa5 {[%clk 0:02:13.4]} 15. a4 {[%clk 0:01:33.3]}
15... O-O {[%clk 0:01:58.5]} 16. e4 {[%clk 0:01:18.7]} 16... Qxd2 {[%clk
0:01:42.2]} 17. Nxd2 {[%clk 0:01:17.9]} 17... Nc3 {[%clk 0:01:41.2]} 18. Rb2
{[%clk 0:01:16.1]} 18... Ne2+ {[%clk 0:01:23.3]} 19. Kh1 {[%clk 0:01:14.1]}
19... Nxc1 {[%clk 0:01:25.2]} 20. Rxc1 {[%clk 0:01:13.5]} 20... Ng4 {[%clk
0:01:19.8]} 21. Rbb1 {[%clk 0:00:56]} 21... Nxf2+ {[%clk 0:01:15.3]} 22. Kg1
{[%clk 0:00:55.7]} 22... Nd3 {[%clk 0:01:14.8]} 23. Rc2 {[%clk 0:00:56.4]} 23...
Bd4+ {[%clk 0:01:15.2]} 24. Kf1 {[%clk 0:00:56.8]} 24... Rfb8 {[%clk 0:01:16.1]}
25. Ke2 {[%clk 0:00:53]} 25... Ne5 {[%clk 0:01:14.8]} 26. Nf3 {[%clk 0:00:49.5]}
26... Rxa4 {[%clk 0:01:09.7]} 27. Nxe5 {[%clk 0:00:29.4]} 27... Bxe5 {[%clk
0:01:08.3]} 28. bxa4 {[%clk 0:00:29.8]} 28... Rxb1 {[%clk 0:01:10.2]} 29. Ra2
{[%clk 0:00:30.5]} 29... c4 {[%clk 0:01:05.2]} 30. a5 {[%clk 0:00:30.5]} 30...
c3 {[%clk 0:01:05.8]} 31. Kd3 {[%clk 0:00:29.8]} 31... Rb2 {[%clk 0:00:58.3]}
32. Rxb2 {[%clk 0:00:30]} 32... cxb2 {[%clk 0:01:00.2]} 33. Kc2 {[%clk
0:00:29.5]} 33... Bd4 {[%clk 0:01:01.3]} 34. a6 {[%clk 0:00:28.2]} 34... Kg7
{[%clk 0:01:01.6]} 35. a7 {[%clk 0:00:24.4]} 35... Bxa7 {[%clk 0:01:02.3]} 36.
Kxb2 {[%clk 0:00:25.4]} 36... Bg1 {[%clk 0:01:04.1]} 37. h3 {[%clk 0:00:25.9]}
37... Bf2 {[%clk 0:01:04.4]} 38. g4 {[%clk 0:00:26.7]} 38... Kf6 {[%clk
0:01:06.1]} 39. Kc3 {[%clk 0:00:26.9]} 39... Ke5 {[%clk 0:01:06.8]} 40. Kd3
{[%clk 0:00:27.5]} 40... Kf4 {[%clk 0:01:07.7]} 41. Ke2 {[%clk 0:00:28.1]} 41...
Bb6 {[%clk 0:01:07.6]} 42. Bf1 {[%clk 0:00:25.5]} 42... Kg3 {[%clk 0:01:08.2]}
0-1

[Event "*** Titled Tuesday 3|2 Blitz"]
[Site "Chess.com"]
[Date "2016.01.05"]
[Round "1"]
[White "stepanosinovsky"]
[Black "BahadirOzen"]
[Result "0-1"]
[WhiteElo "2188"]
[BlackElo "2475"]
[TimeControl "180+2"]
[EndTime "11:07:53 PST"]
[Termination "BahadirOzen won by checkmate"]

1. e4 {[%clk 0:02:58.9]} 1... d6 {[%clk 0:03:00.8]} 2. d4 {[%clk 0:02:59.1]}
2... Nf6 {[%clk 0:03:02.1]} 3. Nc3 {[%clk 0:03:00.2]} 3... Nbd7 {[%clk
0:03:02.5]} 4. Be3 {[%clk 0:03:00.6]} 4... e5 {[%clk 0:03:03.2]} 5. Nge2 {[%clk
0:02:46.8]} 5... c6 {[%clk 0:02:46.6]} 6. f3 {[%clk 0:02:46.4]} 6... Be7 {[%clk
0:02:45.1]} 7. Qd2 {[%clk 0:02:47.1]} 7... b5 {[%clk 0:02:45.2]} 8. a3 {[%clk
0:02:36.1]} 8... O-O {[%clk 0:02:26.1]} 9. g4 {[%clk 0:02:16.6]} 9... Bb7 {[%clk
0:01:46.3]} 10. g5 {[%clk 0:02:08.6]} 10... Nh5 {[%clk 0:01:34.3]} 11. h4 {[%clk
0:01:58]} 11... a5 {[%clk 0:01:27.5]} 12. Bh3 {[%clk 0:01:28.2]} 12... b4 {[%clk
0:01:28.2]} 13. Nd1 {[%clk 0:01:24.4]} 13... d5 {[%clk 0:01:21.7]} 14. exd5
{[%clk 0:00:54.6]} 14... cxd5 {[%clk 0:01:20.6]} 15. Bg4 {[%clk 0:00:55.7]}
15... Nf4 {[%clk 0:01:12.2]} 16. Nxf4 {[%clk 0:00:55.9]} 16... exf4 {[%clk
0:01:14.1]} 17. Bxf4 {[%clk 0:00:56.9]} 17... bxa3 {[%clk 0:01:09.6]} 18. bxa3
{[%clk 0:00:57]} 18... Nb6 {[%clk 0:01:10.2]} 19. Ne3 {[%clk 0:00:55.8]} 19...
Bd6 {[%clk 0:00:45.6]} 20. Bxd6 {[%clk 0:00:49.1]} 20... Qxd6 {[%clk 0:00:47.5]}
21. Kf2 {[%clk 0:00:50.3]} 21... Rfe8 {[%clk 0:00:48.2]} 22. Nf5 {[%clk
0:00:43.7]} 22... Qc7 {[%clk 0:00:46.9]} 23. Rae1 {[%clk 0:00:35.4]} 23... Nc4
{[%clk 0:00:47.5]} 24. Qc3 {[%clk 0:00:36.2]} 24... Qf4 {[%clk 0:00:39.5]} 25.
Rxe8+ {[%clk 0:00:11.4]} 25... Rxe8 {[%clk 0:00:41.4]} 26. Re1 {[%clk
0:00:10.8]} 26... Qh2+ {[%clk 0:00:32.8]} 27. Kf1 {[%clk 0:00:12.1]} 27... Nd2+
{[%clk 0:00:31.8]} 28. Qxd2 {[%clk 0:00:11.6]} 28... Ba6+ {[%clk 0:00:32.2]} 29.
Re2 {[%clk 0:00:08.5]} 29... Rxe2 {[%clk 0:00:27.9]} 30. Ne3 {[%clk 0:00:08.5]}
30... Qf2# {[%clk 0:00:27.6]} 0-1

[Event "*** Titled Tuesday 3|2 Blitz"]
[Site "Chess.com"]
[Date "2016.01.05"]
[Round "1"]
[White "the_drake"]
[Black "oskariot"]
[Result "0-1"]
[WhiteElo "1995"]
[BlackElo "2336"]
[TimeControl "180+2"]
[EndTime "11:08:02 PST"]
[Termination "oskariot won by resignation"]

1. e4 {[%clk 0:02:23.2]} 1... c5 {[%clk 0:03:00]} 2. Nf3 {[%clk 0:02:23.8]} 2...
d6 {[%clk 0:02:59.3]} 3. d4 {[%clk 0:02:24.9]} 3... cxd4 {[%clk 0:03:00.3]} 4.
Nxd4 {[%clk 0:02:26.8]} 4... Nf6 {[%clk 0:03:01.5]} 5. Nc3 {[%clk 0:02:27.3]}
5... Nc6 {[%clk 0:03:02.8]} 6. Be3 {[%clk 0:02:24.4]} 6... Ng4 {[%clk
0:03:03.1]} 7. Bg5 {[%clk 0:02:24.5]} 7... h6 {[%clk 0:03:03.5]} 8. Bh4 {[%clk
0:02:25.1]} 8... g5 {[%clk 0:03:04.8]} 9. Bg3 {[%clk 0:02:26.4]} 9... Bg7 {[%clk
0:03:06.5]} 10. Nxc6 {[%clk 0:02:26.2]} 10... bxc6 {[%clk 0:02:58.4]} 11. Be2
{[%clk 0:02:26.4]} 11... Ne5 {[%clk 0:02:53]} 12. O-O {[%clk 0:02:27.1]} 12...
Be6 {[%clk 0:02:30.8]} 13. Kh1 {[%clk 0:02:17.4]} 13... h5 {[%clk 0:02:24.6]}
14. f4 {[%clk 0:02:01.3]} 14... h4 {[%clk 0:02:18.9]} 15. Be1 {[%clk 0:01:49.9]}
15... gxf4 {[%clk 0:02:17.4]} 16. Rxf4 {[%clk 0:01:50]} 16... h3 {[%clk
0:02:17.7]} 17. g3 {[%clk 0:01:48.7]} 17... Qc7 {[%clk 0:02:08.4]} 18. Nb1
{[%clk 0:01:40.7]} 18... Ng6 {[%clk 0:01:46.7]} 19. Rf1 {[%clk 0:01:40.1]} 19...
Bxb2 {[%clk 0:01:39.4]} 20. Bc3 {[%clk 0:01:41.6]} 20... Bxc3 {[%clk 0:01:40]}
21. Nxc3 {[%clk 0:01:42.2]} 21... Qa5 {[%clk 0:01:38.6]} 22. Qe1 {[%clk
0:01:28.7]} 22... Ne5 {[%clk 0:01:27.9]} 23. Rb1 {[%clk 0:01:16.7]} 23... Qc7
{[%clk 0:01:04.5]} 24. Bd3 {[%clk 0:01:06.6]} 24... Rb8 {[%clk 0:01:04]} 25.
Rxb8+ {[%clk 0:01:06.6]} 25... Qxb8 {[%clk 0:01:05.2]} 26. Ne2 {[%clk
0:00:52.4]} 26... Qb6 {[%clk 0:00:57.7]} 27. a4 {[%clk 0:00:48.9]} 27... Bg4
{[%clk 0:00:57]} 28. Nf4 {[%clk 0:00:42.9]} 28... Bf3+ {[%clk 0:00:53.9]} 29.
Rxf3 {[%clk 0:00:44.4]} 29... Nxf3 {[%clk 0:00:55.1]} 30. Qf1 {[%clk 0:00:40.4]}
30... Ne5 {[%clk 0:00:53.6]} 31. Nxh3 {[%clk 0:00:37.5]} 31... Qe3 {[%clk
0:00:49.3]} 32. Kg2 {[%clk 0:00:30]} 32... Qh6 {[%clk 0:00:45.4]} 33. Qf5 {[%clk
0:00:16]} 33... e6 {[%clk 0:00:39.9]} 34. Qg5 {[%clk 0:00:15.5]} 34... Qxh3+
{[%clk 0:00:40.2]} 35. Kf2 {[%clk 0:00:17.1]} 35... Qxh2+ {[%clk 0:00:41.2]} 36.
Ke3 {[%clk 0:00:18.7]} 36... Qg1+ {[%clk 0:00:39.8]} 37. Kd2 {[%clk 0:00:19.4]}
37... Nf3+ {[%clk 0:00:41]} 0-1

[Event "*** Titled Tuesday 3|2 Blitz"]
[Site "Chess.com"]
[Date "2016.01.05"]
[Round "1"]
[White "tac49"]
[Black "ajkom197"]
[Result "0-1"]
[WhiteElo "2472"]
[BlackElo "2209"]
[TimeControl "180+2"]
[EndTime "11:08:11 PST"]
[Termination "ajkom197 won by resignation"]

1. e4 {[%clk 0:02:49]} 1... c6 {[%clk 0:03:01]} 2. Nf3 {[%clk 0:02:47.2]} 2...
d5 {[%clk 0:03:02.9]} 3. Nc3 {[%clk 0:02:48.1]} 3... dxe4 {[%clk 0:03:03.6]} 4.
Nxe4 {[%clk 0:02:47.7]} 4... Nd7 {[%clk 0:03:05.1]} 5. d4 {[%clk 0:02:47.3]}
5... Ngf6 {[%clk 0:03:05.5]} 6. Nxf6+ {[%clk 0:02:46.6]} 6... Nxf6 {[%clk
0:03:07.4]} 7. h3 {[%clk 0:02:46.5]} 7... Bf5 {[%clk 0:03:08]} 8. Bc4 {[%clk
0:02:45.5]} 8... e6 {[%clk 0:03:08.5]} 9. O-O {[%clk 0:02:44.9]} 9... Be7 {[%clk
0:03:07.3]} 10. c3 {[%clk 0:02:40.7]} 10... O-O {[%clk 0:03:07.9]} 11. Re1
{[%clk 0:02:40.5]} 11... Qc7 {[%clk 0:03:03.3]} 12. Bg5 {[%clk 0:02:38.4]} 12...
h6 {[%clk 0:03:01.9]} 13. Bh4 {[%clk 0:02:38.2]} 13... Nd5 {[%clk 0:03:01.3]}
14. Bg3 {[%clk 0:02:37.5]} 14... Bd6 {[%clk 0:03:01.2]} 15. Bxd6 {[%clk
0:02:19.1]} 15... Qxd6 {[%clk 0:03:03.1]} 16. Ne5 {[%clk 0:02:17.3]} 16... b5
{[%clk 0:02:50.7]} 17. Bb3 {[%clk 0:02:16.6]} 17... a5 {[%clk 0:02:49]} 18. a4
{[%clk 0:02:03.8]} 18... b4 {[%clk 0:02:48.4]} 19. c4 {[%clk 0:01:42.1]} 19...
Ne7 {[%clk 0:02:48.4]} 20. Qd2 {[%clk 0:01:35.6]} 20... Rad8 {[%clk 0:02:45.4]}
21. Rad1 {[%clk 0:01:35.4]} 21... c5 {[%clk 0:02:34.1]} 22. d5 {[%clk 0:01:35]}
22... Ng6 {[%clk 0:02:31.2]} 23. Nxg6 {[%clk 0:01:27.7]} 23... Bxg6 {[%clk
0:02:33.1]} 24. Qe3 {[%clk 0:01:24.9]} 24... Rfe8 {[%clk 0:01:12.2]} 25. dxe6
{[%clk 0:01:19.2]} 25... Qxe6 {[%clk 0:01:13.1]} 26. Rxd8 {[%clk 0:01:18]} 26...
Rxd8 {[%clk 0:01:12.6]} 27. Qxe6 {[%clk 0:01:15.9]} 27... fxe6 {[%clk
0:01:14.5]} 28. Rxe6 {[%clk 0:01:16.3]} 28... Kf7 {[%clk 0:01:05.5]} 29. Re2
{[%clk 0:01:03.5]} 29... Rd4 {[%clk 0:01:02.9]} 30. f3 {[%clk 0:01:00.8]} 30...
Kf6 {[%clk 0:00:58.6]} 31. Kf2 {[%clk 0:00:58.9]} 31... Bf7 {[%clk 0:00:50.9]}
32. Rc2 {[%clk 0:00:36.1]} 32... Rd3 {[%clk 0:00:49.4]} 33. Ke2 {[%clk
0:00:13.2]} 33... Rxb3 {[%clk 0:00:49.8]} 34. Kd1 {[%clk 0:00:08.7]} 34... Bg6
{[%clk 0:00:50.5]} 35. Rd2 {[%clk 0:00:09.2]} 0-1

[Event "*** Titled Tuesday 3|2 Blitz"]
[Site "Chess.com"]
[Date "2016.01.05"]
[Round "1"]
[White "Haridaskesavan"]
[Black "Iball95"]
[Result "0-1"]
[WhiteElo "2100"]
[BlackElo "2399"]
[TimeControl "180+2"]
[EndTime "11:08:15 PST"]
[Termination "Iball95 won by resignation"]

1. e4 {[%clk 0:02:54.3]} 1... e5 {[%clk 0:02:55.3]} 2. Nf3 {[%clk 0:02:54.5]}
2... Nc6 {[%clk 0:02:56.7]} 3. Bc4 {[%clk 0:02:54.5]} 3... Bc5 {[%clk 0:02:56]}
4. c3 {[%clk 0:02:55]} 4... Nf6 {[%clk 0:02:57.2]} 5. d4 {[%clk 0:02:55.9]} 5...
exd4 {[%clk 0:02:57.3]} 6. O-O {[%clk 0:02:56.6]} 6... Nxe4 {[%clk 0:02:51.4]}
7. cxd4 {[%clk 0:02:57]} 7... Bb6 {[%clk 0:02:23.7]} 8. d5 {[%clk 0:02:57.9]}
8... Ne7 {[%clk 0:02:23.3]} 9. Qe2 {[%clk 0:02:49.6]} 9... Nd6 {[%clk
0:02:21.7]} 10. Bd3 {[%clk 0:02:47.2]} 10... c6 {[%clk 0:01:59.9]} 11. Nc3
{[%clk 0:02:33.8]} 11... Kf8 {[%clk 0:01:42.8]} 12. Bf4 {[%clk 0:02:26.3]} 12...
Bc7 {[%clk 0:01:40.1]} 13. Rad1 {[%clk 0:01:40.5]} 13... Ng6 {[%clk 0:01:37.3]}
14. Bg3 {[%clk 0:01:36.4]} 14... Qe7 {[%clk 0:01:13.5]} 15. Qd2 {[%clk 0:01:33]}
15... Ne8 {[%clk 0:01:09.8]} 16. Rfe1 {[%clk 0:01:28.8]} 16... Qd8 {[%clk
0:01:10.7]} 17. Bxg6 {[%clk 0:00:58.8]} 17... hxg6 {[%clk 0:01:10.5]} 18. d6
{[%clk 0:00:59.6]} 18... Ba5 {[%clk 0:01:08.3]} 19. Re7 {[%clk 0:00:56.5]} 19...
Rh5 {[%clk 0:01:04]} 20. Rde1 {[%clk 0:00:56.4]} 20... Nf6 {[%clk 0:01:03.3]}
21. Be5 {[%clk 0:00:52.8]} 21... b6 {[%clk 0:00:52.7]} 22. Bxf6 {[%clk
0:00:51.7]} 22... gxf6 {[%clk 0:00:54.6]} 23. Qe3 {[%clk 0:00:51]} 23... Ba6
{[%clk 0:00:47.2]} 24. Qf4 {[%clk 0:00:42.6]} 24... Kg7 {[%clk 0:00:45.1]} 25.
g4 {[%clk 0:00:35.3]} 25... Rc5 {[%clk 0:00:42.4]} 26. Ne4 {[%clk 0:00:35.4]}
26... f5 {[%clk 0:00:22.5]} 27. Ne5 {[%clk 0:00:36.1]} 27... Bc4 {[%clk
0:00:20.2]} 28. gxf5 {[%clk 0:00:30.9]} 28... Bxe1 {[%clk 0:00:19.5]} 29. f6+
{[%clk 0:00:30.6]} 29... Kg8 {[%clk 0:00:18.9]} 30. Ng5 {[%clk 0:00:22.4]} 30...
Rxe5 {[%clk 0:00:18.4]} 31. Qh4 {[%clk 0:00:22.7]} 31... Rxg5+ {[%clk
0:00:17.6]} 32. Qxg5 {[%clk 0:00:22.5]} 32... Bb4 {[%clk 0:00:17.7]} 33. Qh4
{[%clk 0:00:20.5]} 33... Bxd6 {[%clk 0:00:16.9]} 34. Re3 {[%clk 0:00:19.4]}
34... Be6 {[%clk 0:00:17.2]} 35. Rh3 {[%clk 0:00:19.5]} 35... Bxh3 {[%clk
0:00:16.5]} 36. Qxh3 {[%clk 0:00:20.2]} 36... Qxf6 {[%clk 0:00:16.3]} 0-1

[Event "*** Titled Tuesday 3|2 Blitz"]
[Site "Chess.com"]
[Date "2016.01.05"]
[Round "1"]
[White "KNVB"]
[Black "JustKid"]
[Result "1-0"]
[WhiteElo "2407"]
[BlackElo "2108"]
[TimeControl "180+2"]
[EndTime "11:08:24 PST"]
[Termination "KNVB won by resignation"]

1. d4 {[%clk 0:02:57.2]} 1... d5 {[%clk 0:03:00.6]} 2. c4 {[%clk 0:02:57]} 2...
e6 {[%clk 0:03:02.1]} 3. Nc3 {[%clk 0:02:55.3]} 3... c5 {[%clk 0:03:03.5]} 4. e3
{[%clk 0:02:55.2]} 4... Nf6 {[%clk 0:02:58.2]} 5. Nf3 {[%clk 0:02:54.2]} 5... a6
{[%clk 0:02:58.1]} 6. cxd5 {[%clk 0:02:49.5]} 6... exd5 {[%clk 0:02:58.4]} 7.
dxc5 {[%clk 0:02:45]} 7... Bxc5 {[%clk 0:02:59]} 8. Be2 {[%clk 0:02:46.5]} 8...
Nc6 {[%clk 0:02:59.6]} 9. O-O {[%clk 0:02:45.8]} 9... O-O {[%clk 0:03:00.2]} 10.
Nd4 {[%clk 0:02:14.5]} 10... Re8 {[%clk 0:02:45.6]} 11. Nxc6 {[%clk 0:02:04.2]}
11... bxc6 {[%clk 0:02:44.8]} 12. b3 {[%clk 0:02:05]} 12... Bf5 {[%clk
0:02:31.9]} 13. Bb2 {[%clk 0:02:04.5]} 13... Qe7 {[%clk 0:02:23.9]} 14. Rc1
{[%clk 0:01:55]} 14... Ba3 {[%clk 0:02:13.5]} 15. Qd2 {[%clk 0:01:40.1]} 15...
Bxb2 {[%clk 0:01:33.3]} 16. Qxb2 {[%clk 0:01:42]} 16... Ne4 {[%clk 0:01:22.3]}
17. Nxe4 {[%clk 0:01:24.4]} 17... Bxe4 {[%clk 0:01:24.2]} 18. Rfe1 {[%clk
0:01:25.3]} 18... Qg5 {[%clk 0:01:17.1]} 19. Bf1 {[%clk 0:01:25.9]} 19... Re6
{[%clk 0:01:11.9]} 20. g3 {[%clk 0:01:08.2]} 20... h5 {[%clk 0:01:10.7]} 21. h4
{[%clk 0:00:57.6]} 21... Qf5 {[%clk 0:00:44.8]} 22. Bg2 {[%clk 0:00:55]} 22...
g5 {[%clk 0:00:36.8]} 23. hxg5 {[%clk 0:00:47.7]} 23... h4 {[%clk 0:00:35.1]}
24. f3 {[%clk 0:00:27.7]} 24... Bd3 {[%clk 0:00:13.1]} 25. gxh4 {[%clk
0:00:27.9]} 25... Rae8 {[%clk 0:00:11.3]} 26. Qf2 {[%clk 0:00:28.9]} 26... a5
{[%clk 0:00:09.4]} 27. Rcd1 {[%clk 0:00:27.6]} 27... Bb5 {[%clk 0:00:09.3]} 28.
Kh2 {[%clk 0:00:27]} 28... Kg7 {[%clk 0:00:10.6]} 29. Bh3 {[%clk 0:00:27.6]}
29... Qe5+ {[%clk 0:00:11]} 30. f4 {[%clk 0:00:28.9]} 30... Qe4 {[%clk
0:00:07.7]} 31. Bxe6 {[%clk 0:00:23.2]} 31... Qxe6 {[%clk 0:00:09.6]} 32. f5
{[%clk 0:00:23.4]} 32... Qe5+ {[%clk 0:00:09.5]} 33. Qf4 {[%clk 0:00:23.5]}
33... Qb2+ {[%clk 0:00:10.6]} 34. Kg3 {[%clk 0:00:17.9]} 34... Re4 {[%clk
0:00:12.1]} 35. f6+ {[%clk 0:00:18.3]} 35... Kg6 {[%clk 0:00:12.8]} 36. h5+
{[%clk 0:00:18.2]} 36... Kh7 {[%clk 0:00:12.4]} 37. Qf5+ {[%clk 0:00:18.5]}
37... Kg8 {[%clk 0:00:13.8]} 38. g6 {[%clk 0:00:18.8]} 38... Re5 {[%clk
0:00:13.4]} 39. Qc8+ {[%clk 0:00:19.5]} 1-0

[Event "*** Titled Tuesday 3|2 Blitz"]
[Site "Chess.com"]
[Date "2016.01.05"]
[Round "1"]
[White "Quinten94"]
[Black "nijat_a"]
[Result "0-1"]
[WhiteElo "2252"]
[BlackElo "2640"]
[TimeControl "180+2"]
[EndTime "11:08:25 PST"]
[Termination "nijat_a won by resignation"]

1. e4 {[%clk 0:03:00.3]} 1... Nf6 {[%clk 0:03:01.9]} 2. e5 {[%clk 0:03:01.1]}
2... Nd5 {[%clk 0:03:02.8]} 3. d4 {[%clk 0:03:03]} 3... d6 {[%clk 0:03:03.6]} 4.
Nf3 {[%clk 0:03:04.6]} 4... Bg4 {[%clk 0:03:03.9]} 5. Be2 {[%clk 0:03:05.8]}
5... e6 {[%clk 0:03:04.8]} 6. O-O {[%clk 0:03:06.8]} 6... Be7 {[%clk 0:03:05.6]}
7. h3 {[%clk 0:03:08.1]} 7... Bh5 {[%clk 0:03:06.1]} 8. c4 {[%clk 0:03:08.4]}
8... Nb6 {[%clk 0:03:06.6]} 9. Nc3 {[%clk 0:03:10]} 9... O-O {[%clk 0:03:06.1]}
10. Be3 {[%clk 0:03:10.2]} 10... Nc6 {[%clk 0:03:06.2]} 11. exd6 {[%clk
0:03:08.6]} 11... cxd6 {[%clk 0:03:08.1]} 12. d5 {[%clk 0:03:09.7]} 12... Bxf3
{[%clk 0:03:07.6]} 13. Bxf3 {[%clk 0:03:10.3]} 13... Ne5 {[%clk 0:03:09.5]} 14.
dxe6 {[%clk 0:03:10.5]} 14... fxe6 {[%clk 0:03:10.6]} 15. Bg4 {[%clk 0:03:11]}
15... Nxg4 {[%clk 0:03:10.5]} 16. Qxg4 {[%clk 0:03:11.3]} 16... Rf6 {[%clk
0:03:12.4]} 17. Rfd1 {[%clk 0:03:11.2]} 17... Rg6 {[%clk 0:02:50.7]} 18. Qe4
{[%clk 0:03:03.5]} 18... Qc7 {[%clk 0:02:42]} 19. Rac1 {[%clk 0:02:49.7]} 19...
Qc6 {[%clk 0:02:41.1]} 20. b3 {[%clk 0:02:12.9]} 20... Nd7 {[%clk 0:02:37.7]}
21. a4 {[%clk 0:02:05.1]} 21... a6 {[%clk 0:02:36.1]} 22. b4 {[%clk 0:01:53.6]}
22... Ne5 {[%clk 0:02:32.9]} 23. b5 {[%clk 0:01:46]} 23... Qxe4 {[%clk
0:02:20.2]} 24. Nxe4 {[%clk 0:01:46.6]} 24... Nf7 {[%clk 0:02:21.1]} 25. Bf4
{[%clk 0:01:41.8]} 25... e5 {[%clk 0:02:15.8]} 26. Be3 {[%clk 0:01:42.1]} 26...
Bf8 {[%clk 0:02:14.5]} 27. Kf1 {[%clk 0:01:38.8]} 27... axb5 {[%clk 0:02:12.6]}
28. axb5 {[%clk 0:01:38.7]} 28... Re6 {[%clk 0:02:13.8]} 29. Ra1 {[%clk
0:01:39.6]} 29... Ree8 {[%clk 0:02:12.9]} 30. Ke2 {[%clk 0:01:37.8]} 30... Rec8
{[%clk 0:02:11.3]} 31. Kd3 {[%clk 0:01:38.7]} 31... Be7 {[%clk 0:02:10.2]} 32.
Nc3 {[%clk 0:01:39.4]} 32... Bd8 {[%clk 0:02:09]} 33. Nd5 {[%clk 0:01:40.2]}
33... Kf8 {[%clk 0:02:05.3]} 34. Bb6 {[%clk 0:01:33.4]} 34... Rab8 {[%clk
0:02:00.9]} 35. Ra7 {[%clk 0:01:17.9]} 35... Bxb6 {[%clk 0:01:57.4]} 36. Nxb6
{[%clk 0:01:18.6]} 36... Rd8 {[%clk 0:01:59.3]} 37. h4 {[%clk 0:01:18.3]} 37...
Nh6 {[%clk 0:01:55.8]} 38. Nd5 {[%clk 0:01:19.2]} 38... g6 {[%clk 0:01:53.6]}
39. Ke4 {[%clk 0:01:16]} 39... Kf7 {[%clk 0:01:50]} 40. g3 {[%clk 0:01:13.6]}
40... Ng4 {[%clk 0:01:48.3]} 41. Rd2 {[%clk 0:01:14.1]} 41... Nf6+ {[%clk
0:01:45.2]} 42. Nxf6 {[%clk 0:01:14.8]} 42... Kxf6 {[%clk 0:01:47.1]} 43. b6
{[%clk 0:01:10.5]} 43... Ke6 {[%clk 0:01:46.3]} 44. f4 {[%clk 0:00:59.7]} 44...
Rdc8 {[%clk 0:01:45.5]} 45. Ra4 {[%clk 0:01:00.5]} 45... exf4 {[%clk 0:01:40.4]}
46. Kxf4 {[%clk 0:00:59.3]} 46... Rc6 {[%clk 0:01:41]} 47. Kg5 {[%clk
0:00:36.9]} 47... Rf8 {[%clk 0:01:41.6]} 48. Kh6 {[%clk 0:00:33.6]} 48... Rf3
{[%clk 0:01:42.5]} 49. g4 {[%clk 0:00:29.2]} 49... Rf4 {[%clk 0:01:42.7]} 50.
Re2+ {[%clk 0:00:29.3]} 50... Kd7 {[%clk 0:01:42.4]} 51. Ra8 {[%clk 0:00:20.9]}
51... Rxg4 {[%clk 0:01:40.4]} 52. Rae8 {[%clk 0:00:21.6]} 52... Rxh4+ {[%clk
0:01:40.5]} 53. Kg7 {[%clk 0:00:21.1]} 53... Rcxc4 {[%clk 0:01:39]} 0-1

[Event "*** Titled Tuesday 3|2 Blitz"]
[Site "Chess.com"]
[Date "2016.01.05"]
[Round "1"]
[White "MinhGTrAn"]
[Black "ruifeng"]
[Result "1-0"]
[WhiteElo "2591"]
[BlackElo "2235"]
[TimeControl "180+2"]
[EndTime "11:08:29 PST"]
[Termination "MinhGTrAn won by resignation"]

1. d4 {[%clk 0:03:01.5]} 1... Nf6 {[%clk 0:02:59.9]} 2. c4 {[%clk 0:03:02.3]}
2... g6 {[%clk 0:03:01]} 3. Nc3 {[%clk 0:03:03.7]} 3... Bg7 {[%clk 0:03:02.1]}
4. Bf4 {[%clk 0:03:02.1]} 4... d6 {[%clk 0:02:59.4]} 5. e3 {[%clk 0:03:03.6]}
5... O-O {[%clk 0:02:59.9]} 6. Nf3 {[%clk 0:03:04.5]} 6... Nbd7 {[%clk
0:03:00.8]} 7. Be2 {[%clk 0:03:03.9]} 7... Qe8 {[%clk 0:02:57.7]} 8. Nb5 {[%clk
0:03:00.5]} 8... Qd8 {[%clk 0:02:58.6]} 9. O-O {[%clk 0:03:01.2]} 9... c6 {[%clk
0:02:58.9]} 10. Nc3 {[%clk 0:03:02.7]} 10... Qe8 {[%clk 0:02:56.5]} 11. h3
{[%clk 0:03:00]} 11... e5 {[%clk 0:02:57.2]} 12. Bh2 {[%clk 0:03:00]} 12... Qe7
{[%clk 0:02:58.2]} 13. dxe5 {[%clk 0:02:59.8]} 13... dxe5 {[%clk 0:02:56.1]} 14.
Qd2 {[%clk 0:02:48.7]} 14... b6 {[%clk 0:02:55.9]} 15. Rfd1 {[%clk 0:02:48.6]}
15... Bb7 {[%clk 0:02:57]} 16. Qd6 {[%clk 0:02:49.4]} 16... Rfe8 {[%clk
0:02:52.2]} 17. Qc7 {[%clk 0:02:36.4]} 17... Ba6 {[%clk 0:02:28.2]} 18. Qxc6
{[%clk 0:02:33]} 18... Rac8 {[%clk 0:02:15.8]} 19. Qa4 {[%clk 0:02:26]} 19...
Nc5 {[%clk 0:02:14.8]} 20. Qa3 {[%clk 0:02:27.3]} 20... e4 {[%clk 0:02:11.6]}
21. Nd4 {[%clk 0:01:59.3]} 21... Bb7 {[%clk 0:01:55.8]} 22. Qxa7 {[%clk
0:01:53.6]} 22... Nfd7 {[%clk 0:01:56.7]} 23. Qa3 {[%clk 0:01:38.7]} 23... Ne5
{[%clk 0:01:38.9]} 24. Nd5 {[%clk 0:01:26.5]} 24... Bxd5 {[%clk 0:01:07.1]} 25.
cxd5 {[%clk 0:01:28.4]} 25... Ned3 {[%clk 0:00:59]} 26. b4 {[%clk 0:00:37.8]}
26... Ra8 {[%clk 0:00:32.7]} 27. Qc3 {[%clk 0:00:38.8]} 27... Na4 {[%clk
0:00:33.5]} 28. Qc7 {[%clk 0:00:31.2]} 28... Qxb4 {[%clk 0:00:33.4]} 29. Bxd3
{[%clk 0:00:29.4]} 29... exd3 {[%clk 0:00:33.7]} 30. Rxd3 {[%clk 0:00:31.3]}
30... Bxd4 {[%clk 0:00:33.3]} 31. Rxd4 {[%clk 0:00:29.5]} 31... Qb2 {[%clk
0:00:33.7]} 32. Qc1 {[%clk 0:00:26]} 32... Qe2 {[%clk 0:00:31]} 33. Bg3 {[%clk
0:00:23]} 33... Rac8 {[%clk 0:00:30.5]} 34. Qd2 {[%clk 0:00:22.8]} 34... Nc3
{[%clk 0:00:30.9]} 35. d6 {[%clk 0:00:19.9]} 35... Red8 {[%clk 0:00:25.4]} 36.
d7 {[%clk 0:00:20.5]} 36... Ra8 {[%clk 0:00:21]} 37. Qxc3 {[%clk 0:00:20.1]}
37... Rxa2 {[%clk 0:00:16.7]} 38. Rxa2 {[%clk 0:00:21]} 38... Qxa2 {[%clk
0:00:18.2]} 39. Qc7 {[%clk 0:00:21.1]} 39... Qb1+ {[%clk 0:00:18.6]} 40. Kh2
{[%clk 0:00:22.1]} 1-0